bitfinex/quotes_SOLUSD_20250710
["timestamp","ask_amount","ask_price","bid_price","bid_amount"]
[1752185095020,0.67,163.45,163.39,0.68]
[1752185095242,0.67,163.45,163.41,8.98112694]
[1752185095510,0.67,163.44,163.39,0.68]
[1752185095926,0.67,163.44,163.41,8.98112694]
[1752185096418,0.67,163.44,163.39,0.68]
[1752185096724,6.11882763,163.43,163.41,8.98112694]
[1752185096894,6.78882763,163.43,163.39,8.98112694]
[1752185097097,0.67,163.42,163.37,0.68]
[1752185097298,0.67,163.42,163.38,8.98112694]
[1752185097493,0.67,163.42,163.37,0.68]
[1752185097698,0.67,163.42,163.38,8.98112694]
[1752185098207,15.09995457,163.43,163.38,8.98112694]
[1752185098208,32.78850838,163.44,163.39,8.98112694]
[1752185098530,41.76963532,163.44,163.39,9.66112694]
[1752185099226,0.67,163.43,163.37,0.68]
[1752185099397,0.67,163.43,163.4,8.98112694]
[1752185099598,26.0,163.44,163.41,8.98112694]
[1752185099814,26.0,163.44,163.42,8.98112694]
[1752185100614,9.65112694,163.43,163.37,0.68]
[1752185100825,8.98112694,163.41,163.36,9.08112694]
[1752185101011,8.98112694,163.37,163.36,0.1]
[1752185101413,32.5087,163.34,163.3,0.45298199]
[1752185101616,0.67,163.33,163.3,0.45298199]
[1752185101813,0.67,163.32,163.3,0.45298199]
[1752185101999,33.1787,163.34,163.3,9.43410893]
[1752185102194,8.98112694,163.31,163.3,0.45298199]
[1752185102413,26.0,163.34,163.3,0.45298199]
[1752185102414,0.67,163.36,163.3,9.43410893]
[1752185102613,32.12074013,163.38,163.34,8.98112694]
[1752185102813,0.67,163.37,163.34,8.98112694]
[1752185103026,6.78997592,163.4,163.36,8.98112694]
[1752185103228,0.67,163.4,163.37,8.98112694]
[1752185103524,0.67,163.39,163.36,8.98112694]
[1752185103720,41.40102694,163.41,163.38,8.98112694]
[1752185103721,0.67,163.41,163.38,8.98112694]
[1752185103900,0.67,163.41,163.36,0.68]
[1752185104095,0.67,163.41,163.38,8.98112694]
[1752185104621,0.67,163.4,163.37,8.98112694]
[1752185105118,26.0,163.41,163.35,0.14216157]
[1752185105325,0.67,163.42,163.36,0.68]
[1752185105515,0.67,163.44,163.41,8.98112694]
[1752185106026,0.67,163.44,163.42,8.98112694]
[1752185106327,32.78800237,163.46,163.42,8.98112694]
[1752185106510,0.67,163.45,163.42,8.98112694]
[1752185106711,26.0,163.44,163.42,8.98112694]
[1752185106908,26.67,163.44,163.38,0.68]
[1752185107109,26.67,163.44,163.41,8.98112694]
[1752185107327,0.67,163.44,163.42,8.98112694]
[1752185107510,0.67,163.44,163.38,0.14216157]
[1752185107933,0.67,163.44,163.41,8.98112694]
[1752185108731,0.67,163.44,163.38,0.14216157]
[1752185108923,0.67,163.44,163.41,8.98112694]
[1752185109128,0.67,163.43,163.41,8.98112694]
[1752185109514,0.67,163.43,163.38,0.14216157]
[1752185109709,0.67,163.43,163.41,8.98112694]
[1752185110236,0.67,163.43,163.4,8.98112694]
[1752185110436,0.67,163.42,163.37,0.14216157]
[1752185110608,0.67,163.42,163.38,8.98112694]
[1752185110812,0.67,163.44,163.4,8.98112694]
[1752185111239,0.67,163.44,163.41,8.98112694]
[1752185111544,0.67,163.43,163.39,8.98112694]
[1752185111749,0.67,163.43,163.4,8.98112694]
[1752185112115,0.67,163.42,163.36,8.98112694]
[1752185112316,8.98112694,163.4,163.36,8.98112694]
[1752185112520,0.67,163.39,163.34,8.98112694]
[1752185112842,15.7716341,163.39,163.34,8.98112694]
[1752185113020,6.79050716,163.39,163.35,8.98112694]
[1752185113632,0.67,163.39,163.36,8.98112694]
[1752185113830,0.67,163.42,163.37,0.68]
[1752185114336,0.67,163.41,163.35,0.68]
[1752185114514,0.67,163.41,163.38,8.98112694]
[1752185114922,26.03,163.43,163.39,8.98112694]
[1752185115119,0.03,163.43,163.39,0.68]
[1752185115634,6.81884859,163.43,163.4,8.98112694]
[1752185115820,0.7,163.43,163.4,8.98112694]
[1752185116220,0.03,163.43,163.4,8.98112694]
[1752185116415,0.03,163.43,163.38,0.68]
[1752185116626,0.03,163.43,163.41,8.98112694]
[1752185116842,0.03,163.43,163.39,0.68]
[1752185117020,0.03,163.43,163.4,8.98112694]
[1752185117339,0.03,163.43,163.41,8.98112694]
[1752185117543,0.03,163.43,163.42,8.98112694]
[1752185117714,0.03,163.43,163.4,0.68]
[1752185117915,0.03,163.43,163.41,8.98112694]
[1752185119113,0.03,163.43,163.42,8.98112694]
[1752185120118,0.03,163.43,163.41,8.98112694]
[1752185121333,0.03,163.43,163.42,8.98112694]
[1752185121541,0.03,163.43,163.4,0.68]
[1752185121723,0.03,163.43,163.41,8.98112694]
[1752185122247,0.03,163.43,163.42,8.98112694]
[1752185122436,0.03,163.43,163.42,9.68112694]
[1752185122628,0.03,163.43,163.42,8.98112694]
[1752185124361,0.03,163.43,163.42,9.68112694]
[1752185124544,0.03,163.43,163.42,89.7]
[1752185124746,0.03,163.43,163.42,89.0]
[1752185125353,0.03,163.43,163.42,97.98112694]
[1752185125761,0.03,163.43,163.42,89.0]
[1752185126063,0.03,163.43,163.42,97.98112694]
[1752185126564,0.03,163.43,163.42,89.0]
[1752185127040,26.0,163.41,163.36,89.0]
[1752185127238,8.98112694,163.39,163.34,10.54572694]
[1752185127456,0.67,163.39,163.35,8.98112694]
[1752185128137,0.67,163.39,163.34,2.2646]
[1752185128338,9.65112694,163.41,163.36,8.98112694]
[1752185128640,9.65112694,163.41,163.36,9.68112694]
[1752185128825,15.77077678,163.41,163.36,0.7]
[1752185129029,15.77077678,163.41,163.35,8.98112694]
[1752185129030,9.65112694,163.4,163.35,8.98112694]
[1752185129262,0.67,163.39,163.36,8.98112694]
[1752185129432,6.78964984,163.41,163.36,8.98112694]
[1752185129639,0.67,163.4,163.36,8.98112694]
[1752185130536,9.65112694,163.4,163.36,8.98112694]
[1752185130980,6.78999185,163.4,163.36,8.98112694]
[1752185131139,6.78999185,163.4,163.35,0.7]
[1752185131542,0.67,163.39,163.36,8.98112694]
[1752185131839,6.11999185,163.4,163.36,8.98112694]
[1752185132174,6.78999185,163.4,163.36,8.98112694]
[1752185132374,0.67,163.4,163.37,8.98112694]
[1752185132744,26.0,163.42,163.38,9.68112694]
[1752185132946,26.0,163.42,163.39,8.98112694]
[1752185133169,6.1192585,163.42,163.4,8.98112694]
[1752185133343,6.1192585,163.42,163.38,89.7]
[1752185133663,6.7892585,163.42,163.39,8.98112694]
[1752185133841,6.7892585,163.42,163.38,89.0]
[1752185134042,0.67,163.41,163.38,89.0]
[1752185134251,0.67,163.41,163.39,8.98112694]
[1752185134679,0.67,163.41,163.38,97.98112694]
[1752185135049,6.1203256,163.39,163.38,89.0]
[1752185135247,6.14884444,163.43,163.38,98.68112694]
[1752185135552,6.14884444,163.43,163.39,0.7]
[1752185135760,6.81884444,163.43,163.4,8.98112694]
[1752185135942,0.03,163.43,163.42,8.98112694]
[1752185137050,0.03,163.43,163.42,98.68112694]
[1752185137248,0.03,163.43,163.42,98.82328851]
[1752185137469,0.03,163.43,163.42,100.33468851]
[1752185137669,6.299,163.53,163.42,117.40369562]
[1752185137969,6.11511587,163.53,163.5,8.98112694]
[1752185138274,6.11511587,163.53,163.49,8.98112694]
[1752185138275,0.67,163.52,163.49,8.98112694]
[1752185138476,6.11511587,163.53,163.49,8.98112694]
[1752185138772,6.11511587,163.53,163.45,135.1]
[1752185138773,9.65112694,163.52,163.45,135.1]
[1752185138957,8.98112694,163.51,163.47,8.98112694]
[1752185139157,6.11620795,163.5,163.48,8.98112694]
[1752185139675,6.11620795,163.5,163.45,135.1]
[1752185139857,6.11620795,163.5,163.48,8.98112694]
[1752185140256,6.11545988,163.52,163.48,8.98112694]
[1752185140458,6.11545988,163.52,163.49,8.98112694]
[1752185140660,6.11545988,163.52,163.49,97.98112694]
[1752185141350,6.11545988,163.52,163.49,89.0]
[1752185141577,6.11545988,163.52,163.49,98.68112694]
[1752185141775,6.11545988,163.52,163.5,8.98112694]
[1752185141961,6.11545988,163.52,163.49,97.98112694]
[1752185142581,0.06,163.55,163.52,16.78468397]
[1752185142767,0.2,163.57,163.55,16.92684554]
[1752185142959,0.2,163.57,163.56,9.12328851]
[1752185143454,0.2,163.57,163.56,9.82328851]
[1752185144377,0.06,163.59,163.58,18.57444554]
[1752185144671,0.06,163.59,163.58,82.43669942]
[1752185144874,0.06,163.59,163.58,83.42102256]
[1752185145273,0.06,163.59,163.58,74.43989562]
[1752185145673,0.06,163.59,163.58,74.15557248]
[1752185147359,0.06,163.59,163.58,65.17444554]
[1752185147680,0.06,163.59,163.58,8.98112694]
[1752185150283,9.71112694,163.59,163.54,8.98112694]
[1752185150576,0.67,163.58,163.54,8.98112694]
[1752185150785,0.06,163.59,163.55,8.98112694]
[1752185150963,0.06,163.59,163.56,8.98112694]
[1752185151276,6.17284308,163.59,163.54,0.7]
[1752185151477,0.73,163.59,163.55,8.98112694]
[1752185152488,0.73,163.59,163.54,0.7]
[1752185152794,0.73,163.59,163.55,8.98112694]
[1752185153683,0.73,163.59,163.56,8.98112694]
[1752185153684,0.06,163.59,163.56,8.98112694]
[1752185153877,6.89302945,163.59,163.55,89.0]
[1752185154082,0.72,163.58,163.55,89.0]
[1752185154286,8.98112694,163.56,163.52,8.98112694]
[1752185154485,0.72,163.55,163.52,8.98112694]
[1752185154783,6.83435542,163.55,163.52,8.98112694]
[1752185156699,6.83435542,163.55,163.5,0.14216157]
[1752185156981,6.83435542,163.55,163.52,8.98112694]
[1752185157186,6.83435542,163.55,163.52,0.03]
[1752185157376,0.72,163.54,163.52,0.03]
[1752185157565,6.83435542,163.55,163.52,9.01112694]
[1752185158590,0.72,163.57,163.53,8.98112694]
[1752185158887,35.04112694,163.59,163.54,9.68112694]
[1752185159197,35.04112694,163.59,163.52,0.03]
[1752185159198,6.83321677,163.58,163.55,8.98112694]
[1752185159382,6.83321677,163.58,163.54,8.98112694]
[1752185159581,0.72,163.57,163.54,8.98112694]
[1752185159902,6.11321677,163.58,163.54,8.98112694]
[1752185160075,6.17295229,163.59,163.56,8.98112694]
[1752185160405,0.72,163.58,163.54,97.98112694]
[1752185160611,0.72,163.57,163.54,97.98112694]
[1752185160889,6.83360952,163.57,163.55,8.98112694]
[1752185161105,0.06,163.59,163.56,8.98112694]
[1752185161272,0.06,163.59,163.58,8.98112694]
[1752185161868,0.06,163.59,163.58,97.98112694]
[1752185162070,0.06,163.59,163.58,9.68112694]
[1752185162292,0.06,163.59,163.58,0.84216157]
[1752185162493,0.06,163.59,163.58,115.60797248]
[1752185163189,6.83013322,163.67,163.6,0.14216157]
[1752185163388,6.83013322,163.67,163.61,8.98112694]
[1752185163389,9.70112694,163.66,163.61,8.98112694]
[1752185163593,8.98112694,163.66,163.61,8.98112694]
[1752185163788,0.72,163.65,163.62,8.98112694]
[1752185163989,0.72,163.64,163.62,8.98112694]
[1752185164992,30.36589815,163.67,163.62,8.98112694]
[1752185165197,0.72,163.66,163.63,8.98112694]
[1752185165698,8.98112694,163.64,163.57,1.5921]
[1752185165878,8.98112694,163.62,163.57,8.98112694]
[1752185166082,0.72,163.61,163.58,8.98112694]
[1752185166402,26.72,163.63,163.59,8.98112694]
[1752185166596,8.98112694,163.61,163.56,0.7]
[1752185166777,0.72,163.61,163.57,8.98112694]
[1752185166973,0.72,163.64,163.6,8.98112694]
[1752185167191,6.8309842,163.64,163.61,8.98112694]
[1752185168095,0.72,163.64,163.59,0.14216157]
[1752185168399,6.83028453,163.66,163.62,8.98112694]
[1752185168587,0.72,163.65,163.62,8.98112694]
[1752185168790,6.11028453,163.66,163.63,8.98112694]
[1752185168993,6.11028453,163.66,163.64,8.98112694]
[1752185169482,6.83028453,163.66,163.63,8.98112694]
[1752185169685,6.10988373,163.67,163.65,8.98112694]
[1752185169881,6.82988373,163.67,163.64,8.98112694]
[1752185170596,6.10988373,163.67,163.64,8.98112694]
[1752185170800,0.72,163.66,163.61,89.14216157]
[1752185171102,6.10988373,163.67,163.64,8.98112694]
[1752185171279,6.82954204,163.68,163.66,8.98112694]
[1752185171601,6.82954204,163.68,163.65,8.98112694]
[1752185171993,6.82954204,163.68,163.66,8.98112694]
[1752185172198,6.10954204,163.68,163.66,8.98112694]
[1752185172396,6.1091296,163.69,163.67,8.98112694]
[1752185172699,0.72,163.68,163.65,8.98112694]
[1752185173205,6.10873549,163.7,163.66,8.98112694]
[1752185173519,0.72,163.69,163.66,8.98112694]
[1752185174085,6.10873549,163.7,163.66,8.98112694]
[1752185174413,15.08948928,163.71,163.67,8.98112694]
[1752185174583,6.10836234,163.71,163.67,8.98112694]
[1752185174780,6.10836234,163.71,163.64,0.7]
[1752185174781,6.82836234,163.71,163.64,0.7]
[1752185174988,6.82836234,163.71,163.68,8.98112694]
[1752185175291,6.82836234,163.71,163.66,8.98112694]
[1752185175292,0.72,163.7,163.66,8.98112694]
[1752185175489,0.72,163.7,163.67,8.98112694]
[1752185175804,0.72,163.69,163.66,8.98112694]
[1752185175995,6.10836234,163.71,163.67,8.98112694]
[1752185176196,6.82836234,163.71,163.67,8.98112694]
[1752185176908,6.10836234,163.71,163.67,8.98112694]
[1752185177088,0.72,163.7,163.66,8.98112694]
[1752185177408,0.72,163.7,163.67,8.98112694]
[1752185178609,6.82908883,163.7,163.67,8.98112694]
[1752185178798,6.82908883,163.7,163.64,0.84216157]
[1752185179107,6.82908883,163.7,163.67,8.98112694]
[1752185179813,6.82908883,163.7,163.66,8.98112694]
[1752185180109,0.72,163.69,163.66,8.98112694]
[1752185180309,0.72,163.68,163.61,2.3591]
[1752185180490,8.98112694,163.66,163.61,10.64022694]
[1752185180685,8.98112694,163.64,163.59,0.7]
[1752185180890,8.98112694,163.62,163.57,11.24262694]
[1752185181407,8.98112694,163.58,163.53,10.57772694]
[1752185181583,8.98112694,163.58,163.54,0.14216157]
[1752185181786,8.98112694,163.57,163.52,9.01112694]
[1752185181988,8.98112694,163.53,163.52,0.03]
[1752185182418,41.77621285,163.53,163.52,0.03]
[1752185182792,32.79508591,163.53,163.52,0.03]
[1752185182988,41.77621285,163.53,163.52,0.03]
[1752185185892,32.79508591,163.53,163.52,0.03]
[1752185186118,41.77621285,163.53,163.52,0.03]
[1752185187793,26.68,163.53,163.52,0.03]
[1752185188017,6.4221,163.58,163.52,0.03]
[1752185188207,8.98112694,163.55,163.52,0.03]
[1752185188408,34.98112694,163.55,163.52,0.03]
[1752185188607,35.66112694,163.55,163.52,0.03]
[1752185189218,32.79447061,163.55,163.52,0.03]
[1752185189695,7.1021,163.58,163.52,0.03]
[1752185189898,32.11364433,163.57,163.53,8.98112694]
[1752185190132,0.68,163.56,163.52,9.01112694]
[1752185190431,9.66112694,163.56,163.52,9.01112694]
[1752185190798,9.66112694,163.55,163.52,0.03]
[1752185191207,0.68,163.54,163.52,0.03]
[1752185191503,6.79487732,163.54,163.52,0.03]
[1752185192196,6.11487732,163.54,163.52,0.03]
[1752185192401,6.11430112,163.56,163.53,8.98112694]
[1752185192610,6.79430112,163.56,163.52,9.01112694]
[1752185193225,6.79430112,163.56,163.52,98.01112694]
[1752185193719,6.11366562,163.57,163.53,8.98112694]
[1752185194220,32.11319514,163.59,163.54,8.98112694]
[1752185194414,32.79319514,163.59,163.55,8.98112694]
[1752185194610,0.68,163.58,163.54,97.98112694]
[1752185194818,8.98112694,163.58,163.54,89.0]
[1752185195008,0.68,163.57,163.54,89.0]
[1752185195807,0.68,163.57,163.54,97.98112694]
[1752185196002,6.1135395,163.58,163.54,89.69]
[1752185196202,6.7935395,163.58,163.54,98.67112694]
[1752185196497,6.7935395,163.58,163.54,97.98112694]
[1752185196901,0.68,163.57,163.54,97.98112694]
[1752185197103,0.68,163.56,163.54,89.0]
[1752185197919,6.7939788,163.56,163.54,89.0]
[1752185198117,0.68,163.55,163.54,89.0]
[1752185198321,9.66112694,163.55,163.52,0.03]
[1752185198526,8.98112694,163.53,163.52,0.03]
[1752185199032,9.66112694,163.53,163.52,0.03]
[1752185199827,6.79508591,163.53,163.52,0.03]
[1752185200026,6.11476839,163.54,163.52,0.03]
[1752185200529,32.1140207,163.56,163.52,9.01112694]
[1752185200727,32.7940207,163.56,163.52,0.03]
[1752185200926,32.7940207,163.56,163.52,9.01112694]
[1752185201440,32.7940207,163.56,163.52,0.03]
[1752185201631,8.98112694,163.54,163.52,0.03]
[1752185202112,6.11508591,163.53,163.52,0.03]
[1752185203335,6.11482002,163.54,163.52,0.03]
[1752185203921,32.79432052,163.56,163.52,9.01112694]
[1752185204129,0.68,163.55,163.52,98.01112694]
[1752185204324,6.11436157,163.55,163.52,98.01112694]
[1752185204511,6.11436157,163.55,163.52,89.03]
[1752185204715,0.68,163.54,163.52,89.03]
[1752185204921,15.09548851,163.55,163.52,89.03]
[1752185205126,0.68,163.53,163.52,89.03]
[1752185205736,15.77548851,163.55,163.52,89.03]
[1752185205916,6.79436157,163.55,163.52,89.03]
[1752185207032,6.11436157,163.55,163.52,89.03]
[1752185207222,6.11436157,163.55,163.52,98.01112694]
[1752185207718,0.06,163.59,163.54,8.98112694]
[1752185208034,26.74,163.59,163.55,8.98112694]
[1752185208430,6.11321677,163.58,163.56,8.98112694]
[1752185208813,6.11321677,163.58,163.54,89.0]
[1752185209014,6.11321677,163.58,163.56,8.98112694]
[1752185210735,6.11321677,163.58,163.55,8.98112694]
[1752185211442,6.11321677,163.58,163.56,8.98112694]
[1752185212319,0.06,163.59,163.57,8.98112694]
[1752185213428,0.68,163.58,163.56,89.0]
[1752185213643,0.68,163.57,163.56,89.0]
[1752185213943,0.68,163.57,163.52,10.65732694]
[1752185213944,9.66112694,163.57,163.52,10.65732694]
[1752185214149,0.68,163.56,163.52,0.03]
[1752185214321,6.11438523,163.55,163.52,0.03]
[1752185215438,15.09551217,163.55,163.52,0.03]
[1752185215732,6.79438523,163.55,163.52,0.03]
[1752185215953,15.09509123,163.56,163.52,9.01112694]
[1752185216240,6.11396429,163.56,163.53,8.98112694]
[1752185216445,6.11365077,163.57,163.54,8.98112694]
[1752185216623,6.11365077,163.57,163.54,9.65112694]
[1752185217037,6.11365077,163.57,163.55,8.98112694]
[1752185217333,6.11365077,163.57,163.54,8.98112694]
[1752185217842,0.68,163.57,163.54,8.98112694]
[1752185218343,0.68,163.56,163.52,0.03]
[1752185218640,9.66112694,163.56,163.52,0.03]
[1752185218844,0.68,163.56,163.52,9.01112694]
[1752185219643,6.11433812,163.55,163.53,8.98112694]
[1752185220234,6.79433812,163.55,163.52,0.03]
[1752185220548,6.11433812,163.55,163.53,8.98112694]
[1752185220920,6.11407906,163.56,163.52,0.7]
[1752185221123,6.11407906,163.56,163.53,8.98112694]
[1752185221322,0.06,163.59,163.55,8.98112694]
[1752185221520,0.06,163.59,163.56,9.65112694]
[1752185221724,0.06,163.59,163.58,8.98112694]
[1752185221922,0.06,163.59,163.58,9.65112694]
[1752185222727,0.06,163.59,163.58,35.79328851]
[1752185222946,0.06,163.59,163.58,33.42646157]
[1752185223144,0.06,163.59,163.58,42.40758851]
[1752185224056,0.06,163.59,163.58,68.45772256]
[1752185224228,0.06,163.59,163.58,59.47659562]
[1752185224623,9.80058112,163.63,163.6,0.14216157]
[1752185224924,6.10985519,163.67,163.62,8.98112694]
[1752185225138,6.78881421,163.7,163.65,8.98112694]
[1752185225359,6.78881421,163.7,163.67,8.98112694]
[1752185225524,6.10839552,163.71,163.68,8.98112694]
[1752185225724,6.10839552,163.71,163.65,0.67]
[1752185226024,6.10839552,163.71,163.68,8.98112694]
[1752185227040,6.78839552,163.71,163.68,8.98112694]
[1752185227354,8.98112694,163.69,163.63,1.6279]
[1752185227532,9.66112694,163.69,163.64,8.98112694]
[1752185227731,0.68,163.68,163.64,8.98112694]
[1752185228052,0.68,163.67,163.63,1.6279]
[1752185228259,9.66112694,163.66,163.61,26.0]
[1752185228562,9.66112694,163.65,163.6,8.98112694]
[1752185228745,0.68,163.64,163.6,8.98112694]
[1752185228951,9.66112694,163.66,163.61,8.98112694]
[1752185229251,0.68,163.65,163.61,8.98112694]
[1752185229454,9.66112694,163.65,163.6,8.98112694]
[1752185229633,26.68,163.67,163.61,8.98112694]
[1752185229841,41.7711491,163.67,163.61,0.67]
[1752185230042,8.98112694,163.66,163.61,8.98112694]
[1752185230539,0.68,163.65,163.61,8.98112694]
[1752185230736,32.11002216,163.67,163.62,8.98112694]
[1752185230737,32.79002216,163.67,163.62,8.98112694]
[1752185230941,9.66112694,163.66,163.61,0.67]
[1752185231160,0.68,163.65,163.6,0.14216157]
[1752185231355,0.68,163.65,163.62,8.98112694]
[1752185231937,26.0,163.66,163.62,8.98112694]
[1752185232136,0.68,163.68,163.64,8.98112694]
[1752185232137,26.68,163.68,163.64,8.98112694]
[1752185232357,15.7699424,163.7,163.66,8.98112694]
[1752185232750,6.78881546,163.7,163.66,8.98112694]
[1752185233161,6.10842933,163.71,163.67,8.98112694]
[1752185233365,0.2,163.72,163.69,8.98112694]
[1752185234038,6.30802584,163.72,163.69,8.98112694]
[1752185234245,0.2,163.72,163.7,8.98112694]
[1752185234445,0.88,163.72,163.67,1.6145]
[1752185234645,0.2,163.72,163.69,8.98112694]
[1752185234866,0.2,163.72,163.67,2.2845]
[1752185235061,0.2,163.72,163.68,0.67]
[1752185235288,0.2,163.72,163.69,8.98112694]
[1752185235871,0.2,163.72,163.67,1.6145]
[1752185236075,6.30801572,163.72,163.69,8.98112694]
[1752185237956,6.98801572,163.72,163.68,8.98112694]
[1752185238367,0.2,163.72,163.7,8.98112694]
[1752185238681,0.2,163.72,163.69,8.98112694]
[1752185239269,6.30807378,163.72,163.69,8.98112694]
[1752185239567,6.98807378,163.72,163.69,8.98112694]
[1752185239765,6.98807378,163.72,163.67,11.26562694]
[1752185239982,6.30807378,163.72,163.68,9.65112694]
[1752185240372,0.2,163.72,163.71,8.98112694]
[1752185240570,0.2,163.72,163.69,0.67]
[1752185240778,0.2,163.72,163.7,8.98112694]
[1752185240975,0.2,163.72,163.71,9.65112694]
[1752185241154,0.2,163.72,163.71,0.67]
[1752185241360,0.2,163.72,163.71,97.98112694]
[1752185241657,0.2,163.72,163.71,89.0]
[1752185241862,0.2,163.72,163.71,97.98112694]
[1752185242484,0.2,163.72,163.71,89.0]
[1752185242775,6.30798924,163.72,163.71,89.0]
[1752185242972,0.2,163.72,163.71,89.0]
[1752185243675,0.2,163.72,163.71,97.98112694]
[1752185243884,0.2,163.72,163.71,98.79328851]
[1752185244062,0.2,163.72,163.71,89.67]
[1752185244581,0.2,163.72,163.71,98.65112694]
[1752185245889,0.2,163.72,163.71,89.67]
[1752185246093,0.2,163.72,163.71,98.65112694]
[1752185247882,0.2,163.72,163.71,97.98112694]
[1752185248085,6.30798924,163.72,163.71,89.0]
[1752185248390,0.2,163.72,163.71,89.0]
[1752185248990,6.97798924,163.72,163.71,89.0]
[1752185249298,0.2,163.72,163.71,89.0]
[1752185250694,0.2,163.72,163.71,97.98112694]
[1752185251081,0.2,163.72,163.71,89.0]
[1752185251293,0.2,163.72,163.71,97.98112694]
[1752185252294,0.2,163.72,163.71,98.65112694]
[1752185253199,0.2,163.72,163.71,142.47313185]
[1752185253386,0.06,163.73,163.72,1.94398471]
[1752185253571,0.06,163.73,163.72,80.74591057]
[1752185255098,0.2,163.75,163.74,43.06900711]
[1752185255270,0.2,163.75,163.74,184.34301993]
[1752185255593,0.2,163.76,163.75,89.22648471]
[1752185255894,0.06,163.84,163.79,0.14216157]
[1752185256142,6.16362182,163.84,163.82,8.98112694]
[1752185256269,0.73,163.84,163.82,8.98112694]
[1752185256464,0.06,163.84,163.83,26.57797248]
[1752185256669,9.76189091,163.89,163.83,26.57797248]
[1752185256670,0.2,163.89,163.88,0.42648471]
[1752185256870,0.2,163.89,163.88,69.32229562]
[1752185257596,0.2,163.89,163.88,26.81216157]
[1752185257794,0.2,163.89,163.88,77.56328851]
[1752185258498,0.2,163.89,163.88,78.23328851]
[1752185258906,0.2,163.89,163.88,68.58216157]
[1752185259270,0.2,163.89,163.88,77.56328851]
[1752185259472,0.2,163.89,163.88,35.12328851]
[1752185259902,6.30165354,163.89,163.88,35.12328851]
[1752185260105,6.30165354,163.89,163.86,0.14216157]
[1752185260281,0.67,163.88,163.86,51.34112694]
[1752185260478,6.30165354,163.89,163.87,8.98112694]
[1752185260904,6.97165354,163.89,163.87,8.98112694]
[1752185261592,6.30165354,163.89,163.88,8.98112694]
[1752185261787,6.97165354,163.89,163.87,8.98112694]
[1752185262583,6.30165354,163.89,163.87,8.98112694]
[1752185263701,6.30165354,163.89,163.88,8.98112694]
[1752185263885,6.30165354,163.89,163.87,8.98112694]
[1752185264508,6.30165354,163.89,163.88,8.98112694]
[1752185264807,0.2,163.89,163.88,9.12328851]
[1752185264990,0.2,163.89,163.88,9.79328851]
[1752185266289,6.30165354,163.89,163.88,0.14216157]
[1752185266801,6.30165354,163.89,163.88,8.98112694]
[1752185267185,0.2,163.89,163.88,8.98112694]
[1752185267582,6.30165354,163.89,163.88,8.98112694]
[1752185268107,0.2,163.89,163.88,9.79328851]
[1752185268882,6.30165354,163.89,163.88,9.12328851]
[1752185269480,6.30165354,163.89,163.88,0.14216157]
[1752185269708,6.30165354,163.89,163.88,9.12328851]
[1752185270196,6.30165354,163.89,163.88,0.14216157]
[1752185270389,6.30165354,163.89,163.88,9.12328851]
[1752185270588,6.97165354,163.89,163.87,42.14]
[1752185270790,6.97165354,163.89,163.86,8.98112694]
[1752185271137,6.30165354,163.89,163.87,8.98112694]
[1752185271313,6.30165354,163.89,163.88,8.98112694]
[1752185271482,6.30165354,163.89,163.87,8.98112694]
[1752185271886,6.30165354,163.89,163.86,0.14216157]
[1752185272114,22.24578741,163.89,163.84,105.78468397]
[1752185272406,0.69,163.88,163.83,26.0]
[1752185272594,6.10277065,163.86,163.83,34.98112694]
[1752185272797,6.79277065,163.86,163.83,8.98112694]
[1752185273994,6.10277065,163.86,163.82,41.98]
[1752185274196,6.10277065,163.86,163.84,8.98112694]
[1752185275008,6.10211993,163.88,163.85,9.83328851]
[1752185275186,6.10211993,163.88,163.87,8.98112694]
[1752185275383,6.10211993,163.88,163.85,0.85216157]
[1752185275613,6.10211993,163.88,163.87,8.98112694]
[1752185275793,0.2,163.89,163.88,0.14216157]
[1752185275993,0.2,163.89,163.88,9.12328851]
[1752185276807,6.30165354,163.89,163.88,9.12328851]